[Event "FIDE Chesscom Grand Swiss 2019"]
[Site "Douglas-Isle of Man"]
[Date "2019.10.20"]
[Round "10.41"]
[White "Dahl, Baard"]
[Black "Kolbus, Dietmar"]
[Result "1-0"]
[ECO "C16"]
[WhiteElo "2067"]
[BlackElo "2300"]
[Annotator "NA"]
[PlyCount "121"]
[EventDate "2019.10.10"]
[EventType "swiss"]
[EventCountry "GBR"]
[SourceTitle "playchess.com"]
[Source "ChessBase"]
[SourceQuality "1"]
[TimeControl "40/6000+30:20/3000+30:900+30"]

1. e4 {[%emt 0:00:00]} e6 {[%emt 0:00:00]} 2. d4 {[%emt 0:00:00]} d5 {[%emt 0:00:00]} 3. Nc3 {[%emt 0:01:00]} Bb4 {[%emt 0:00:00]} 4. e5 {[%emt 0:00:09]} Ne7 {[%emt 0:00:12]} 5. a3 {[%emt 0:01:00]} Bxc3+ {[%emt 0:00:09]} 6. bxc3 {[%emt 0:00:03]} b6 {[%emt 0:00:16]} 7. Qg4 {[%emt 0:01:42]} Ng6 {[%emt 0:00:13]} 8. h4 {[%emt 0:00:32]} h5 {[%emt 0:00:11]} 9. Qd1 {[%emt 0:00:37]} Ba6 {[%emt 0:00:15]} 10. Bxa6 {[%emt 0:00:19]} Nxa6 {[%emt 0:00:02]} 11. Bg5 {[%emt 0:00:10]} Ne7 {[%emt 0:02:30]} 12. Ne2 {[%emt 0:04:58]} Qd7 {[%emt 0:03:59]} 13. Ng3 {[%emt 0:00:10]} g6 {[%emt 0:00:37]} 14. Qf3 {[%emt 0:00:05]} c6 {[%emt 0:13:23]} 15. O-O {[%emt 0:06:48]} Nc7 {[%emt 0:14:42]} 16. a4 {[%emt 0:05:20]} Nf5 {[%emt 0:01:21]} 17. Nxf5 {[%emt 0:00:08]} exf5 {[%emt 0:00:59]} 18. Bf6 {[%emt 0:03:31]} Rg8 {[%emt 0:00:58]} 19. Rfe1 {[%emt 0:12:57]} Qe6 {[%emt 0:00:25]} 20. Rad1 {[%emt 0:08:23]} Kd7 {[%emt 0:01:22]} 21. Qe2 {[%emt 0:10:15]} b5 {[%emt 0:10:57]} 22. Ra1 {[%emt 0:01:41]} Rgb8 {[%emt 0:02:36]} 23. Reb1 {[%emt 0:00:59]} a6 {[%emt 0:06:33]} 24. Qd2 {[%emt 0:03:53]} Rc8 {[%emt 0:03:20]} 25. Qc1 {[%emt 0:04:02]} Qe8 {[%emt 0:00:28]} 26. Rb3 {[%emt 0:10:21]} Qf8 {[%emt 0:03:10]} 27. Ra2 {[%emt 0:06:19]} Rab8 {[%emt 0:00:27]} 28. axb5 {[%emt 0:03:15]} cxb5 {[%emt 0:01:16]} 29. e6+ {[%emt 0:04:06]} fxe6 {[%emt 0:00:26]} 30. Be5 {[%emt 0:00:06]} Rb6 {[%emt 0:00:09]} 31. Rba3 {[%emt 0:01:34]} Ra8 {[%emt 0:03:03]} 32. Qa1 {[%emt 0:11:29]} Qc8 {[%emt 0:02:24]} 33. Qb2 {[%emt 0:01:16]} Rc6 {[%emt 0:08:40]} 34. Qb4 {[%emt 0:02:32]} Qb7 {[%emt 0:01:48]} 35. c4 {[%emt 0:00:58]} dxc4 {[%emt 0:00:34]} 36. Rg3 {[%emt 0:00:27]} Rg8 {[%emt 0:01:04]} 37. Qd2 {[%emt 0:02:04]} Nd5 {[%emt 0:16:44]} 38. Qh6 {[%emt 0:00:20]} Rcc8 {[%emt 0:00:23]} 39. Rxg6 {[%emt 0:02:39]} Rxg6 {[%emt 0:00:10]} 40. Qxg6 {[%emt 0:00:10]} Re8 {[%emt 0:00:46]} 41. Qf7+ {[%emt 0:08:49]} Re7 {[%emt 0:00:15]} 42. Qxh5 {[%emt 0:00:30]} b4 {[%emt 0:00:14]} 43. Qf3 {[%emt 0:03:10]} Qb5 {[%emt 0:07:16]} 44. h5 {[%emt 0:07:27]} a5 {[%emt 0:01:11]} 45. h6 {[%emt 0:00:41]} b3 {[%emt 0:00:40]} 46. cxb3 {[%emt 0:01:14]} cxb3 {[%emt 0:00:02]} 47. Rb2 {[%emt 0:00:23]} a4 {[%emt 0:00:15]} 48. Bg7 {[%emt 0:00:20]} Qc4 {[%emt 0:00:57]} 49. h7 {[%emt 0:01:31]} Rxg7 {[%emt 0:13:21]} 50. h8=Q {[%emt 0:00:13]} Qxd4 {[%emt 0:00:10]} 51. Qfh5 {[%emt 0:05:32]} Qxb2 {[%emt 0:01:51]} 52. Q5e8+ {[%emt 0:00:32]} Kc7 {[%emt 0:01:38]} 53. Qc8+ {[%emt 0:04:26]} Kb6 {[%emt 0:00:43]} 54. Qxe6+ {[%emt 0:00:09]} Kc5 {[%emt 0:00:24]} 55. Qf8+ {[%emt 0:03:58]} Re7 {[%emt 0:01:09]} 56. Qec8+ {[%emt 0:00:46]} Kd4 {[%emt 0:03:36]} 57. Qh8+ {[%emt 0:04:07]} Re5 {[%emt 0:00:09]} 58. f4 {[%emt 0:12:06]} Qb1+ {[%emt 0:00:55]} 59. Kh2 {[%emt 0:00:08]} Nxf4 {[%emt 0:00:26]} 60. Qd7+ {[%emt 0:00:17]} Nd5 {[%emt 0:04:46]} 61. Qxa4+ {[%emt 0:15:08]} 1-0

[Event "FIDE Chesscom Grand Swiss 2019"]
[Site "Douglas-Isle of Man"]
[Date "2019.10.20"]
[Round "10.42"]
[White "Wu, Li"]
[Black "Nebolsina, Vera"]
[Result "1/2-1/2"]
[ECO "D85"]
[WhiteElo "2332"]
[BlackElo "2252"]
[Annotator "NA"]
[PlyCount "58"]
[EventDate "2019.10.10"]
[EventType "swiss"]
[EventCountry "GBR"]
[SourceTitle "playchess.com"]
[Source "ChessBase"]
[SourceQuality "1"]
[TimeControl "40/6000+30:20/3000+30:900+30"]

1. Nf3 {[%emt 0:00:00]} g6 {[%emt 0:00:00]} 2. c4 {[%emt 0:03:29]} Bg7 {[%emt 0:00:05]} 3. d4 {[%emt 0:00:28]} Nf6 {[%emt 0:00:16]} 4. Nc3 {[%emt 0:00:14]} d5 {[%emt 0:00:20]} 5. cxd5 {[%emt 0:00:19]} Nxd5 {[%emt 0:00:06]} 6. e4 {[%emt 0:00:05]} Nxc3 {[%emt 0:00:07]} 7. bxc3 {[%emt 0:00:03]} c5 {[%emt 0:00:15]} 8. Be3 {[%emt 0:00:24]} O-O {[%emt 0:01:10]} 9. Rc1 {[%emt 0:04:46]} Qa5 {[%emt 0:01:40]} 10. Qd2 {[%emt 0:00:10]} cxd4 {[%emt 0:00:24]} 11. cxd4 {[%emt 0:00:04]} Qxd2+ {[%emt 0:00:07]} 12. Kxd2 {[%emt 0:01:29]} Rd8 {[%emt 0:00:40]} 13. Bd3 {[%emt 0:19:27]} Nc6 {[%emt 0:07:49]} 14. Rc4 {[%emt 0:06:37]} Bg4 {[%emt 0:07:08]} 15. d5 {[%emt 0:25:00]} Bxf3 {[%emt 0:00:36]} 16. gxf3 {[%emt 0:00:03]} Ne5 {[%emt 0:00:40]} 17. Rc7 {[%emt 0:00:03]} e6 {[%emt 0:02:48]} 18. Rxb7 {[%emt 0:08:44]} exd5 {[%emt 0:02:03]} 19. Ke2 {[%emt 0:00:02]} Nxd3 {[%emt 0:19:25]} 20. Kxd3 {[%emt 0:00:04]} dxe4+ {[%emt 0:00:12]} 21. Kxe4 {[%emt 0:00:02]} Re8+ {[%emt 0:28:08]} 22. Kd3 {[%emt 0:07:46]} a5 {[%emt 0:05:01]} 23. f4 {[%emt 0:20:12]} Rac8 {[%emt 0:02:59]} 24. Ke2 {[%emt 0:00:16]} Bd4 {[%emt 0:11:02]} 25. Rd1 {[%emt 0:00:41]} Bxe3 {[%emt 0:02:04]} 26. fxe3 {[%emt 0:00:03]} Rc2+ {[%emt 0:00:04]} 27. Rd2 {[%emt 0:00:04]} Rc3 {[%emt 0:00:08]} 28. Rd3 {[%emt 0:00:05]} Rc2+ {[%emt 0:00:05]} 29. Rd2 {[%emt 0:00:04]} Rc3 {[%emt 0:00:57]} 1/2-1/2